Cogmind - Beta 16.1 @@@ ROGUE MODE // 2026.01.22 @ 10:54:55 Player: C0-2MO Result: Destroyed by D-53 Grenadier with Mini Grenade Launcher Performance ------------- Evolutions (0) 0 Regions Visited (2) 400 Robots Destroyed (23) 115 Value Destroyed (516) 516 Prototype IDs (0) 0 Alien Tech Used (0) 0 Bonus (0) 0 TOTAL SCORE: 1031 Bonus ------- None Cogmind --------- Core Integrity 0/250 Matter 254/300 Energy 47/100 System Corruption 1% Temperature Cool (12) Movement Treading (240) Ox1 Location -10/Mines Parts ------- > --- POWER (1) -------- (None) > --- PROPULSION (2) --- Light Treads Compact Wheel > --- UTILITY (2) ------ Large Storage Unit Seismic Detector > --- WEAPON (2) ------- Medium Laser > --- INVENTORY (15) --- Ion Engine Compact Wheel Heat Sink Small Storage Unit High-capacity Storage Unit High-capacity Battery (126) Structural Scanner Improved Terrain Scanner Hacking Suite Trap Extractor (0/4) EMP Blaster EMP Blaster Mining Laser Peak State ------------ > --- POWER ------------ Light Ion Engine > --- PROPULSION ------- Compact Wheel Compact Wheel > --- UTILITY ---------- Heat Sink Large Storage Unit > --- WEAPON ----------- Medium Laser EMP Blaster > --- INVENTORY -------- Ion Engine Light Treads Light Treads Compact Wheel Small Storage Unit High-capacity Storage Unit Structural Scanner Improved Terrain Scanner Seismic Detector Hacking Suite Trap Extractor Medium Laser EMP Blaster Mining Laser [Rating: 10] Favorites ----------- Power Light Ion Engine Engine Light Ion Engine Propulsion Compact Wheel Treads Light Treads Wheel Compact Wheel Utility Large Storage Unit Device Seismic Detector Storage Large Storage Unit Weapon Medium Laser Energy Gun Medium Laser Launcher EMP Blaster Special Weapon Mining Laser Build | -11 -10 -10 ------- Run | Yrd Mat Min Slots Evolved . | . . . Power . | . . . Propulsion . | . . . Utility . | . . . Weapon . | . . . Parts Attached 16 | 7 7 2 Power 1 | 1 . . Engine 1 | 1 . . Core . | . . . Reactor . | . . . Propulsion 5 | 2 2 1 Treads 2 | 1 . 1 Leg . | . . . Wheel 3 | 1 2 . Hover . | . . . Flight . | . . . Utility 6 | 2 3 1 Device 3 | 1 2 . Storage 3 | 1 1 1 Processor . | . . . Hackware . | . . . Protection . | . . . Artifact . | . . . Weapon 4 | 2 2 . Energy Gun 2 | 2 . . Energy Cannon . | . . . Ballistic Gun . | . . . Ballistic Cannon . | . . . Launcher 1 | . 1 . Special Weapon 1 | . 1 . Impact Weapon . | . . . Slashing Weapon . | . . . Piercing Weapon . | . . . Special Melee Weapon . | . . . Unidentified Prototypes . | . . . Parts Lost 4 | . . 4 Power 1 | . . 1 Propulsion 1 | . . 1 Utility . | . . . Weapon 2 | . . 2 Highest Loss Streak 4 | . . 4 To Critical Strikes . | . . . Average Backups 10 | 3 10 15 Power . | . 1 1 Propulsion 2 | 1 2 2 Utility 4 | . 4 8 Weapon 1 | . 1 4 Tool/Special . | . . . Unused Backups 8 | . . 8 Power 1 | . . 1 Propulsion 1 | . . 1 Utility 4 | . . 4 Weapon 2 | . . 2 Tool/Special . | . . . Average Slot Usage (%) 99 | . 99 100 Engine 14 | . 14 14 Treads 8 | . 8 . Wheel 19 | . 19 28 Device 14 | . 14 14 Storage 14 | . 14 14 Energy Gun 20 | . 21 14 Launcher 2 | . 1 14 Special Weapon 4 | . 4 . Peak Build Rating 10 | 7 10 10 Average Rating 8 | 5 8 9 On Entrance 5 | . 7 9 Avg Prop Armor Cover (%) 13 | 14 13 . Naked Turns . | . . . Heaviest Build 30 | 13 30 30 Greatest Support 32 | 16 32 32 Greatest Overweight (x) 1 | . 1 . Average Overweight (x) . | . . . Largest Inventory Capacity 15 | 8 15 15 Average Capacity 13 | 7 13 15 Most Carried 15 | 6 15 15 Average Carried 10 | 3 10 14 Final Capacity 15 | 8 15 15 Final Carried 15 | 6 15 13 Class Distribution -------------------- 100% | Mutant Dominant Class ---------------- Mutant | -10/Materials Mutant | -10/Mines Resources | -11 -10 -10 ----------- Run | Yrd Mat Min Matter Collected 422 | 270 132 20 Remotely . | . . . Salvage Created 814 | 160 485 169 Parts 59 | 13 26 20 Haulers Intercepted . | . . . Recyclers Shooed 1 | 1 . . Parts Field Recycled . | . . . Retrieved Matter . | . . . Parts Self-Destructed . | . . . Prevented . | . . . Parts Restored . | . . . Kills | -11 -10 -10 ------- Run | Yrd Mat Min Combat Hostiles Destroyed 13 | . 9 4 Guns 7 | . 6 1 AOE 6 | . 3 3 Classes Destroyed 8 | 2 3 3 Builder 2 | . . 2 Tunneler 3 | 3 . . Recycler 2 | 1 . 1 Operator 1 | . 1 . Watcher 2 | . 2 . Swarmer 3 | . . 3 Grunt 9 | . 9 . Demolisher 1 | . . 1 Best Kill Streak 7 | 4 4 7 Combat Bots Only 4 | . 4 4 Max Kills in Single Turn 3 | 1 3 3 Gunslinging . | . . . Exploded 2 | . 2 2 Melee . | . . . Uniques/NPCs Destroyed . | . . . Combat | -11 -10 -10 -------- Run | Yrd Mat Min Hostile Shots Fired 52 | . 39 13 Missed 16 | . 14 2 Hits 36 | . 25 11 Projectile 36 | . 25 11 AOE 8 | . 1 7 Damage Taken 727 | . 376 351 Core 250 | . 124 126 Absorbed by Shields . | . . . Core Remaining (%) 100 | 100 . . Volleys Fired 71 | 5 60 6 Largest 2 | 2 2 2 Hottest 150 | 100 150 100 Shots Fired 102 | 10 84 8 Gun 85 | 10 71 4 Cannon . | . . . Launcher 8 | . 4 4 Special 9 | . 9 . Kinetic . | . . . Thermal 94 | 10 80 4 Explosive . | . . . Electromagnetic 8 | . 4 4 Robot Hit Streak 17 | 6 17 2 Robot Miss Streak 3 | 1 3 2 Penetration Max . | . . . Secondary Targets 1 | . . 1 Max Gunslinging Chain 1 | . . 1 Shots Hit Robots 59 | 6 49 4 Core Hits 41 | 5 25 11 Critical Kills . | . . . Critical Parts Destroyed . | . . . Critical Strikes 2 | . 2 . Burn 2 | . 2 . Melee Attacks . | . . . Impact . | . . . Slashing . | . . . Piercing . | . . . Sneak Attacks . | . . . Combat Hostiles . | . . . Follow-up Attacks . | . . . Damage Inflicted 1130 | 76 777 277 Guns 697 | 76 596 25 Cannons . | . . . Explosions 433 | . 181 252 Melee . | . . . Ramming . | . . . Kinetic . | . . . Thermal 857 | 76 641 140 Explosive . | . . . Electromagnetic 273 | . 136 137 Impact . | . . . Slashing . | . . . Piercing . | . . . Highest Corruption 1 | . 1 1 Average Corruption 1 | . 1 1 Corruption Purged . | . . . Corruption Blocked . | . . . Effects 2 | . 2 . Matter Fused 1 | . 1 . Data Loss (major) 1 | . 1 . Overload Shots . | . . . Overflow Damage 35 | . . 35 Projectiles . | . . . Explosions 35 | . . 35 Melee . | . . . Knockbacks . | . . . Impact . | . . . Kinetic . | . . . Secondary . | . . . Self-Inflicted Damage 73 | . . 73 Shots 3 | . . 3 Rammed . | . . . Targets Rammed . | . . . Kicked . | . . . Crushed . | . . . Highest Temperature 183 | 98 183 29 Average Temperature 54 | 44 58 13 Received Heat Transfer 192 | . 192 . Siege Activations . | . . . Martial Activations . | . . . Shielding Activations . | . . . Robots Disrupted . | . . . Combat Hostiles . | . . . Robots Corrupted . | . . . Combat Hostiles . | . . . Parts Fried 2 | . 1 1 Impact Corruptions . | . . . Robots Melted . | . . . Combat Hostiles . | . . . Parts Melted 3 | . 3 . Heat Transferred 2570 | 222 2024 324 Parts Sabotaged . | . . . Parts Stolen . | . . . Parts Stripped . | . . . Power Chain Reactions 4 | . 2 2 Alert | -11 -10 -10 ------- Run | Yrd Mat Min Maximum Alert Level . | . . . Low Security (%) 100 | 100 100 100 Level 1 . | . . . Level 2 . | . . . Level 3 . | . . . Level 4 . | . . . Level 5 . | . . . High Security . | . . . Max Security . | . . . Peak Influence 172 | 10 172 116 Initial 41 | . . 41 Average 49 | 2 52 99 Influence Increases 472 | 20 341 111 Destroy 0b10 Robot/C 260 | . 180 80 Destroy 0b10 Robot/NC 50 | 20 15 15 Destroy Leader 54 | . 44 10 Successful Hack 17 | . 17 . Select Force Hacks 30 | . 30 . Disable Machine 15 | . 15 . Destroy Structure 16 | . 10 6 Lose Combat Pursuer 30 | . 30 . Influence Decreases 370 | 20 234 116 Entered New Map 66 | . . 66 Time Decay 264 | 20 234 10 Lost Part 40 | . . 40 Squads Dispatched 3 | . 3 . Investigation 2 | . 2 . Extermination . | . . . Reinforcement 1 | . 1 . Assault . | . . . Garrison . | . . . Intercept . | . . . Searches Triggered . | . . . Construction Impeded . | . . . Haulers Reinforced . | . . . Active Scanning Responses . | . . . Cargo Convoy Interrupts . | . . . Stealth | -11 -10 -10 --------- Run | Yrd Mat Min Distress Signals 1 | . 1 . Communications Jammed . | . . . Distress Signals . | . . . Times Spotted 24 | . 19 5 Peak Tracking Total 5 | . 5 3 Tactical Retreats 2 | . 2 . Traps | -11 -10 -10 ------- Run | Yrd Mat Min Traps Triggered . | . . . Indirectly . | . . . Trap Hack Attempts . | . . . Triggered . | . . . Disarmed . | . . . Reprogrammed . | . . . Reused . | . . . Traps Extracted . | . . . Installed . | . . . Triggered . | . . . Machines | -11 -10 -10 ---------- Run | Yrd Mat Min Machines Disabled 1 | . 1 . Max in Single Turn 1 | . 1 . Machines Repaired . | . . . Machines Dismantled . | . . . Machines Sabotaged . | . . . Overloaded Fab Kills . | . . . Hacking | -11 -10 -10 --------- Run | Yrd Mat Min Machines Accessed 8 | . 8 . Terminals 7 | . 7 . Fabricators . | . . . Repair Stations . | . . . Recycling Units 1 | . 1 . Scanalyzers . | . . . Garrison Access . | . . . Total Hacks 31 | . 31 . Successful 14 | . 14 . Failed 16 | . 16 . Catastrophic 3 | . 3 . Database Lockouts 1 | . 1 . Manual 22 | . 22 . Terminals 30 | . 30 . Fabricators . | . . . Repair Stations . | . . . Recycling Units 1 | . 1 . Scanalyzers . | . . . Garrison Access . | . . . Terminal Hacks 4 | . 4 . Robot Analysis 2 | . 2 . Terminal Index 1 | . 1 . Zone Layout 1 | . 1 . Fabricator Hacks . | . . . Repair Station Hacks . | . . . Recycling Unit Hacks . | . . . Scanalyzer . | . . . Garrison Access Hacks . | . . . Unauthorized Hacks 10 | . 10 . Terminals 9 | . 9 . Assimilate 1 | . 1 . Botnet 2 | . 2 . Operators 1 | . 1 . Skim 5 | . 5 . Fabricators . | . . . Repair Stations . | . . . Recycling Units 1 | . 1 . Tunnel 1 | . 1 . Scanalyzers . | . . . Garrison Access . | . . . Data Cores Recovered . | . . . Used . | . . . Hacking Detections 7 | . 7 . Full Trace Events 2 | . 2 . Feedback Events 1 | . 1 . Corruption 1 | . 1 . Feedback Blocked . | . . . Robot Schematics Acquired . | . . . Robots Built . | . . . Authchips . | . . . Time . | . . . Total Robot Build Rating . | . . . Part Schematics Acquired . | . . . Parts Built . | . . . Authchips . | . . . Time . | . . . Total Part Build Rating . | . . . Part Studies Acquired . | . . . Parts Repaired . | . . . Time . | . . . Parts Recycled . | . . . Recycled Matter . | . . . Retrieved Matter . | . . . Retrieved Components . | . . . Parts Scanalyzed . | . . . Part Schematics Acquired . | . . . Parts Damaged . | . . . Bothacking | -11 -10 -10 ------------ Run | Yrd Mat Min Used RIF Installer . | . . . Robots Hacked . | . . . Non-combat . | . . . Combat . | . . . Robot Hacks Applied . | . . . Relay Couplers Released . | . . . Fabnet Peak Effective % . | . . . Robots Rewired . | . . . Allies Hacked . | . . . Hacks Repelled . | . . . Allies | -11 -10 -10 -------- Run | Yrd Mat Min Total Allies 1 | . 1 . Largest Group 1 | . 1 . Highest-Rated Group 10 | . 10 . Highest-Rated Ally 10 | . 10 . Total Orders . | . . . Ally Attacks . | . . . Total Damage . | . . . Kills . | . . . Allies Corrupted . | . . . Allies Melted . | . . . Intel | -11 -10 -10 ------- Run | Yrd Mat Min Active Infowar (turns) 446 | 5 429 12 Structural 22 | . 22 . Seismic 424 | 5 407 12 Robot Analysis Total 2 | . 2 . Derelict Logs Recovered . | . . . Drone Launches . | . . . Drone Recoveries . | . . . Exploration | -11 -10 -10 ------------- Run | Yrd Mat Min Turns Passed 877 | 67 789 21 Spaces Moved 545 | 37 506 2 Core 5 | 5 . . Treads . | . . . Legs . | . . . Wheels 540 | 32 506 2 Hover . | . . . Flight . | . . . Fastest Speed 50 | 50 100 100 Average Speed 104 | 93 105 100 Slowest Speed 115 | 100 115 100 Overloaded Moves . | . . . Propulsion Burnouts . | . . . Robots Hopped . | . . . Potential Cave-ins . | . . . Cave-ins Triggered . | . . . Exploration Rate (%) 29 | 4 81 4 Regions Visited 2 Branch Regions 1 Pre-discovered Areas 3 | . 3 . Known Exits Taken 1 | . 1 . Unknown Exits Taken 1 | 1 . . Scrap Searched . | . . . Spaces Dug 5 | . 5 . Terrain Destroyed 16 | . 10 6 Melee . | . . . Projectile 6 | . 6 . AOE 10 | . 4 6 Terrain Rammed . | . . . Walls Destroyed . | . . . Machines Disabled . | . . . Actions | -11 -10 -10 --------- Run | Yrd Mat Min Total 723 | 56 654 13 Wait 65 | . 65 . Move 543 | 36 505 2 Hop . | . . . Pick Up 14 | 7 7 . Fast Attach 8 | 6 2 . Attach 3 | 1 . 2 Detach 2 | . 2 . Swap 14 | . 11 3 Drop 3 | 1 2 . Fire 71 | 5 60 6 Melee . | . . . Ram . | . . . Kick . | . . . Crush . | . . . Escape Stasis . | . . . Rewire . | . . . Trap . | . . . Miscellaneous . | . . . Route ------- -11/Scrapyard -10/Materials (discovered 6 exits: *Mat x3 / *Min x2 / Sub) -10/Mines (discovered 2 exits: *Mat / Sub) History --------- Turn | Location | Event 14 | -11/Scrapyard | Discovered new exit (range 16) 68 | -11/Scrapyard | Entered Materials 186 | -10/Materials | Discovered new exit (range 3) 271 | -10/Materials | Central database locked down 314 | -10/Materials | Build established: Mutant 352 | -10/Materials | Loaded intel: 8 terminal locations 399 | -10/Materials | Discovered new exit (range 4) 423 | -10/Materials | Learned location of 1 exit from Storage 539 | -10/Materials | Identified exit to Mines 581 | -10/Materials | Learned 2 Mines zone layouts 637 | -10/Materials | Learned location of Subcaves (-10) 669 | -10/Materials | Identified exit to Subcaves 669 | -10/Materials | Identified exit to Materials 766 | -10/Materials | Learned Storage interactive machine intel 857 | -10/Materials | Entered Mines 858 | -10/Mines | Assembled infested the area 859 | -10/Mines | Core integrity fell below 50% 874 | -10/Mines | Discovered exit to Materials (range 8) 875 | -10/Mines | Core integrity fell below 20% 878 | -10/Mines | Destroyed by D-53 Grenadier with Mini Grenade Launcher Last Messages --------------- 00870_ D-53 Grenadier unfolds itself. 00870_ U-05 Engineer lays Concrete. 00870_ Chain reaction triggered in Corrupted Lgt. Ion Engine. 00870_ U-05 Engineer destroyed. 00870_ Com. Wheel destroyed. 00870_ Destroyed Com. Wheel. 00870_ R-06 Scavenger destroyed. 00870_ EMP Blaster destroyed. 00870_ Destroyed EMP Blaster. 00872_ R-06 Scavenger destroyed. 00874_ Lgt. Ion Engine destroyed. 00874_ EXIT=FOUND: MATERIALS 00874_ K-01 Serf destroyed. 00875_ K-01 Serf collects debris. 00876_ K-01 Serf destroyed. 00877_ D-53 Grenadier destroyed. 00877_ Switching to secondary target: D-53 Grenadier. 00878_ Med. Laser destroyed. Map ----- +----------------------------------------------------+ | | | | | | | | | | | | | | | | | | | | | | | | | | | | | | | ???????????????????????????????????? | | ???????????????????????????????????? | | ?####???????????######?????????????? | | ## ##??????????# ?????????????? | | ##??? ?????# < ????????????? | | #??? ?????? ######??????? | | #?###??????? ##?#???? | | #### #????????? # ##??? | | ##?# #??????????# ##?? | | ##??## ??????????# #?? | | ##????###??????????# @ #??? | | #??????# ????????# = #?? | | #?????## ????????### #?? | | ##????# ??????????# d ##?? | | #????# ??????????## # # #??? | | #????## ???????????# ###### #??? | | ##?????##???????????# ?????? #??? | | ##??????????????????? ??????? #??? | | #?########???????????##????????#??? | | ### ????????????????????????? | | ## ????????????????????????? | | ## ????????????????????????? | | #### ????????????????????????? | | ???## ????????????????????????? | | ????### ????????????????????????? | | ???????????????????????????????????? | | ???????????????????????????????????? | | ???????????????????????????????????? | | ???????????????????????????????????? | | ???????????????????????????????????? | | ???????????????????????????????????? | | ???????????????????????????????????? | | ???????????????????????????????????? | | ???????????????????????????????????? | | ???????????????????????????????????? | +----------------------------------------------------+ Best States ------------- Heat Dissipation 35 Energy Generation 10 Energy Capacity 125 Matter Stores 300 Matter Capacity 300 Sight Range 16 Terrain Scan Density 10 Evasion (%) 50 Item Schematics ----------------- None Robot Schematics ------------------ None Fabricated ------------ Nothing Repaired ---------- Nothing Studied --------- None Alien Tech Used ----------------- None Achievements -------------- None Challenges ------------ None Game ------ Seed CombatCloakMicrothruster Manual? 0 Play Time 00:11:15 Cumulative 885.9 hours Start 2026.01.22 @ 10:44:47 End 2026.01.22 @ 10:54:55 Sessions 1 Manual Loads 0 Difficulty Rogue Special Mode None Game No. 345 Rogue 345 Adventurer 0 Explorer 0 Win Type - Total 92 Types 44/6/16/8/7/1/1/3/1/5 Lore% 98 Gallery% 91 Achievement% 86 Wizard Run 0 Options --------- Layout 1 ASCII 0 Keyboard 0 Movement Numpad Keybinds 0 Fullscreen 1 Font 24/Smallcaps Map View 50x35 Zoom Use 0% Tactical HUD 1 Map Filters NONE Filters NONE Steam 1 RUN: 6ac0f492-25f1-4418-9f9c-8b640f0f4919